[Event "Bundesturnier Hauptturnier 1 2024"]
[Site "Olten"]
[Date "2024.05.12"]
[Round "7.3"]
[White "Baenziger, Fabian"]
[Black "Gautier, Anand"]
[Result "1/2-1/2"]
[ECO "E62"]
[WhiteElo "2415"]
[BlackElo "2274"]
[Annotator "ChessBase"]
[PlyCount "64"]
[EventDate "2024.05.09"]
[EventType "tourn"]
[EventCountry "SUI"]
[SourceTitle "playchess.com"]
[Source "ChessBase"]
[SourceQuality "1"]
[TimeControl "5400+30"]

1. c4 {[%emt 0:00:04]} Nf6 {[%emt 0:00:03]} 2. g3 {[%emt 0:00:10]} g6 {[%emt 0:00:04]} 3. Bg2 {[%emt 0:00:06]} Bg7 {[%emt 0:00:04]} 4. d4 {[%emt 0:00:17]} O-O {[%emt 0:00:07]} 5. Nc3 {[%emt 0:00:04]} d6 {[%emt 0:00:04]} 6. Nf3 {[%emt 0:00:17]} Nc6 {[%emt 0:00:27]} 7. O-O {[%emt 0:00:40]} e5 {[%emt 0:00:13]} 8. h3 {[%emt 0:00:10]} exd4 {[%emt 0:01:20]} 9. Nxd4 {[%emt 0:00:47]} Nxd4 {[%emt 0:00:06]} 10. Qxd4 {[%emt 0:00:06]} Be6 {[%emt 0:00:05]} 11. Qh4 {[%emt 0:02:34]} Nh5 {[%emt 0:03:04]} 12. Bg5 {[%emt 0:00:34]} f6 {[%emt 0:00:34]} 13. Bd2 {[%emt 0:00:17]} c6 {[%emt 0:02:39]} 14. Rad1 {[%emt 0:05:19]} f5 {[%emt 0:30:58]} 15. Qxd8 {[%emt 0:04:38]} Rfxd8 {[%emt 0:04:36]} 16. b3 {[%emt 0:00:07]} Nf6 {[%emt 0:01:47]} 17. Be3 {[%emt 0:06:29]} d5 {[%emt 0:03:43]} 18. cxd5 {[%emt 0:00:55]} Nxd5 {[%emt 0:00:29]} 19. Nxd5 {[%emt 0:00:22]} Bxd5 {[%emt 0:00:42]} 20. Bxd5+ {[%emt 0:00:08]} cxd5 {[%emt 0:01:33]} 21. Rd2 {[%emt 0:05:50]} Kf7 {[%emt 0:01:37]} 22. Rc1 {[%emt 0:00:06]} Rd7 {[%emt 0:00:46]} 23. Bd4 {[%emt 0:01:10]} Bxd4 {[%emt 0:00:37]} 24. Rxd4 {[%emt 0:00:05]} Re8 {[%emt 0:05:04]} 25. e3 {[%emt 0:00:04]} Re4 {[%emt 0:05:42]} 26. Rd3 {[%emt 0:00:11]} Re6 {[%emt 0:01:34]} 27. Rc5 {[%emt 0:06:29]} Red6 {[%emt 0:00:49]} 28. Kf1 {[%emt 0:02:53]} Ke6 {[%emt 0:01:16]} 29. Ke2 {[%emt 0:01:24]} d4 {[%emt 0:01:51]} 30. exd4 {[%emt 0:00:05]} Rxd4 {[%emt 0:00:04]} 31. Rxd4 {[%emt 0:00:04]} Rxd4 {[%emt 0:00:01]} 32. Rc7 {[%emt 0:00:06]} Rd7 {[%emt 0:00:03]} 1/2-1/2

[Event "Bundesturnier Hauptturnier 1 2024"]
[Site "Olten"]
[Date "2024.05.12"]
[Round "7.4"]
[White "Joie, Sebastien"]
[Black "Loeffler, Markus"]
[Result "1-0"]
[ECO "B51"]
[WhiteElo "2382"]
[BlackElo "2238"]
[Annotator "ChessBase"]
[PlyCount "111"]
[EventDate "2024.05.09"]
[EventType "tourn"]
[EventCountry "SUI"]
[SourceTitle "playchess.com"]
[Source "ChessBase"]
[SourceQuality "1"]
[TimeControl "5400+30"]

1. e4 {[%emt 0:00:08]} c5 {[%emt 0:00:07]} 2. Nf3 {[%emt 0:00:43]} d6 {[%emt 0:00:02]} 3. Bb5+ {[%emt 0:01:47]} Nd7 {[%emt 0:00:02]} 4. O-O {[%emt 0:00:19]} a6 {[%emt 0:01:06]} 5. Bxd7+ {[%emt 0:02:36]} Bxd7 {[%emt 0:00:02]} 6. c3 {[%emt 0:00:19]} Nf6 {[%emt 0:03:23]} 7. Re1 {[%emt 0:00:46]} Bc6 {[%emt 0:05:33]} 8. d4 {[%emt 0:00:14]} Bxe4 {[%emt 0:06:25]} 9. Bg5 {[%emt 0:00:08]} Bc6 {[%emt 0:11:30]} 10. Bxf6 {[%emt 0:02:22]} gxf6 {[%emt 0:00:03]} 11. d5 {[%emt 0:00:12]} Bd7 {[%emt 0:00:26]} 12. Nbd2 {[%emt 0:03:32]} Qc7 {[%emt 0:10:18]} 13. Ne4 {[%emt 0:09:23]} O-O-O {[%emt 0:01:46]} 14. b4 {[%emt 0:01:43]} Bg4 {[%emt 0:09:19]} 15. h3 {[%emt 0:10:32]} Bh5 {[%emt 0:01:23]} 16. bxc5 {[%emt 0:02:00]} dxc5 {[%emt 0:00:06]} 17. d6 {[%emt 0:00:29]} Qc6 {[%emt 0:04:57]} 18. Ne5 {[%emt 0:25:01]} fxe5 {[%emt 0:00:05]} 19. Qxh5 {[%emt 0:00:11]} exd6 {[%emt 0:04:30]} 20. Qxf7 {[%emt 0:01:01]} d5 {[%emt 0:15:27]} 21. Qf5+ {[%emt 0:07:42]} Qd7 {[%emt 0:00:37]} 22. Qxe5 {[%emt 0:00:21]} Bg7 {[%emt 0:00:07]} 23. Nxc5 {[%emt 0:04:39]} Bxe5 {[%emt 0:00:58]} 24. Nxd7 {[%emt 0:00:02]} Bxc3 {[%emt 0:00:24]} 25. Rac1 {[%emt 0:00:05]} d4 {[%emt 0:06:12]} 26. Nb6+ {[%emt 0:01:49]} Kb8 {[%emt 0:00:26]} 27. Red1 {[%emt 0:00:01]} Rd6 {[%emt 0:05:12]} 28. Na4 {[%emt 0:04:47]} Rc6 {[%emt 0:00:48]} 29. f4 {[%emt 0:01:48]} b5 {[%emt 0:03:51]} 30. Nb2 {[%emt 0:00:01]} a5 {[%emt 0:02:32]} 31. Nd3 {[%emt 0:00:11]} Kc7 {[%emt 0:00:43]} 32. Kf2 {[%emt 0:01:24]} b4 {[%emt 0:00:19]} 33. Kf3 {[%emt 0:02:18]} a4 {[%emt 0:01:15]} 34. Ne5 {[%emt 0:02:23]} Rc5 {[%emt 0:00:03]} 35. Ke4 {[%emt 0:00:04]} b3 {[%emt 0:01:09]} 36. axb3 {[%emt 0:00:06]} axb3 {[%emt 0:00:01]} 37. g4 {[%emt 0:00:56]} b2 {[%emt 0:01:10]} 38. Rb1 {[%emt 0:00:00]} Ra5 {[%emt 0:00:46]} 39. g5 {[%emt 0:01:26]} Rha8 {[%emt 0:00:43]} 40. h4 {[%emt 0:01:27]} Ra1 {[%emt 0:00:04]} 41. Kd3 {[%emt 0:00:04]} Kd6 {[%emt 0:01:36]} 42. h5 {[%emt 0:02:48]} Ke6 {[%emt 0:00:08]} 43. Kc2 {[%emt 0:01:15]} Kf5 {[%emt 0:00:23]} 44. g6 {[%emt 0:00:48]} hxg6 {[%emt 0:01:27]} 45. hxg6 {[%emt 0:00:08]} Rc8 {[%emt 0:01:57]} 46. g7 {[%emt 0:06:34]} Kxf4 {[%emt 0:00:45]} 47. Ng6+ {[%emt 0:00:16]} Ke4 {[%emt 0:00:42]} 48. Ne7 {[%emt 0:00:42]} d3+ {[%emt 0:00:39]} 49. Kb3 {[%emt 0:00:01]} Bxg7 {[%emt 0:01:54]} 50. Nxc8 {[%emt 0:00:07]} Ke3 {[%emt 0:00:18]} 51. Nd6 {[%emt 0:00:40]} Ke2 {[%emt 0:00:02]} 52. Re1+ {[%emt 0:00:45]} Kf3 {[%emt 0:00:41]} 53. Nc4 {[%emt 0:00:17]} Ra7 {[%emt 0:00:36]} 54. Re3+ {[%emt 0:02:05]} Kf2 {[%emt 0:00:12]} 55. Rxd3 {[%emt 0:00:08]} Rb7+ {[%emt 0:00:19]} 56. Ka2 {[%emt 0:00:44]} 1-0

[Event "Bundesturnier Hauptturnier 1 2024"]
[Site "Olten"]
[Date "2024.05.12"]
[Round "7.5"]
[White "Rohrer, Christophe"]
[Black "Drechsler, Christoph"]
[Result "1-0"]
[ECO "B12"]
[WhiteElo "2240"]
[BlackElo "2099"]
[Annotator "ChessBase"]
[PlyCount "94"]
[EventDate "2024.05.09"]
[EventType "tourn"]
[EventCountry "SUI"]
[SourceTitle "playchess.com"]
[Source "ChessBase"]
[SourceQuality "1"]
[TimeControl "5400+30"]

1. e4 {[%emt 0:00:03]} c6 {[%emt 0:00:31]} 2. d4 {[%emt 0:00:07]} d5 {[%emt 0:00:04]} 3. e5 {[%emt 0:00:09]} g6 {[%emt 0:05:07]} 4. f4 {[%emt 0:00:37]} Nh6 {[%emt 0:00:23]} 5. c3 {[%emt 0:01:26]} Bg4 {[%emt 0:04:44]} 6. Qb3 {[%emt 0:05:36]} Qc8 {[%emt 0:05:12]} 7. Be3 {[%emt 0:09:23]} Bf5 {[%emt 0:01:15]} 8. Nf3 {[%emt 0:03:54]} Ng4 {[%emt 0:06:16]} 9. Bg1 {[%emt 0:02:37]} h5 {[%emt 0:00:53]} 10. Nbd2 {[%emt 0:03:02]} Nh6 {[%emt 0:03:55]} 11. c4 {[%emt 0:07:59]} Be6 {[%emt 0:02:56]} 12. Rc1 {[%emt 0:03:53]} Nd7 {[%emt 0:04:18]} 13. Ng5 {[%emt 0:11:17]} dxc4 {[%emt 0:02:45]} 14. Bxc4 {[%emt 0:00:07]} Bxc4 {[%emt 0:01:02]} 15. Nxc4 {[%emt 0:00:21]} e6 {[%emt 0:00:58]} 16. Ne4 {[%emt 0:03:03]} Nf5 {[%emt 0:01:12]} 17. Bf2 {[%emt 0:01:19]} Qc7 {[%emt 0:03:56]} 18. O-O {[%emt 0:00:48]} Be7 {[%emt 0:04:41]} 19. d5 {[%emt 0:11:14]} exd5 {[%emt 0:00:48]} 20. Ncd6+ {[%emt 0:00:16]} Kf8 {[%emt 0:10:04]} 21. Nxf5 {[%emt 0:01:11]} gxf5 {[%emt 0:00:12]} 22. Ng3 {[%emt 0:00:10]} Bh4 {[%emt 0:04:11]} 23. Qxd5 {[%emt 0:05:02]} Bxg3 {[%emt 0:01:46]} 24. hxg3 {[%emt 0:00:01]} Nb6 {[%emt 0:02:29]} 25. Qd3 {[%emt 0:03:33]} Qd7 {[%emt 0:04:56]} 26. Qxd7 {[%emt 0:01:54]} Nxd7 {[%emt 0:00:03]} 27. Rfd1 {[%emt 0:00:09]} Ke8 {[%emt 0:06:19]} 28. Rd6 {[%emt 0:00:45]} Nf8 {[%emt 0:00:33]} 29. Rf6 {[%emt 0:02:02]} h4 {[%emt 0:01:48]} 30. gxh4 {[%emt 0:00:25]} Rh5 {[%emt 0:00:44]} 31. Rd6 {[%emt 0:00:47]} Ne6 {[%emt 0:01:39]} 32. g3 {[%emt 0:00:16]} a6 {[%emt 0:05:26]} 33. Bb6 {[%emt 0:01:03]} a5 {[%emt 0:02:10]} 34. Rcd1 {[%emt 0:02:03]} Ra6 {[%emt 0:00:53]} 35. Bd8 {[%emt 0:00:53]} Kf8 {[%emt 0:04:29]} 36. Bf6 {[%emt 0:01:10]} Kg8 {[%emt 0:01:06]} 37. Rd7 {[%emt 0:01:35]} Rb6 {[%emt 0:00:45]} 38. R1d2 {[%emt 0:00:21]} c5 {[%emt 0:03:20]} 39. Kg2 {[%emt 0:01:51]} Rb4 {[%emt 0:01:52]} 40. Re7 {[%emt 0:00:54]} Nd4 {[%emt 0:00:46]} 41. Re8+ {[%emt 0:00:11]} Kh7 {[%emt 0:00:07]} 42. Rh8+ {[%emt 0:00:26]} Kg6 {[%emt 0:00:03]} 43. Rg8+ {[%emt 0:00:07]} Kh7 {[%emt 0:00:17]} 44. Rg7+ {[%emt 0:00:18]} Kh6 {[%emt 0:01:18]} 45. Rxf7 {[%emt 0:00:32]} b6 {[%emt 0:01:13]} 46. Kh3 {[%emt 0:01:49]} a4 {[%emt 0:03:09]} 47. g4 {[%emt 0:00:37]} Rxh4+ {[%emt 0:00:55]} 1-0

[Event "Bundesturnier Hauptturnier 1 2024"]
[Site "Olten"]
[Date "2024.05.12"]
[Round "7.6"]
[White "Sutter, Oliver"]
[Black "Rappazzo, Johannes"]
[Result "1-0"]
[ECO "E65"]
[WhiteElo "2304"]
[BlackElo "2129"]
[Annotator "ChessBase"]
[PlyCount "63"]
[EventDate "2024.05.09"]
[EventType "tourn"]
[EventCountry "SUI"]
[SourceTitle "playchess.com"]
[Source "ChessBase"]
[SourceQuality "1"]
[TimeControl "5400+30"]

1. Nf3 {[%emt 0:00:08]} Nf6 {[%emt 0:00:05]} 2. c4 {[%emt 0:00:08]} g6 {[%emt 0:00:05]} 3. g3 {[%emt 0:00:20]} Bg7 {[%emt 0:00:04]} 4. Bg2 {[%emt 0:00:05]} O-O {[%emt 0:00:10]} 5. O-O {[%emt 0:00:07]} d6 {[%emt 0:00:12]} 6. Nc3 {[%emt 0:00:11]} c5 {[%emt 0:00:27]} 7. d4 {[%emt 0:01:23]} Nc6 {[%emt 0:00:09]} 8. dxc5 {[%emt 0:00:44]} dxc5 {[%emt 0:00:07]} 9. Be3 {[%emt 0:00:13]} Be6 {[%emt 0:01:19]} 10. Qa4 {[%emt 0:06:01]} Nd4 {[%emt 0:05:35]} 11. Rad1 {[%emt 0:04:24]} Bd7 {[%emt 0:08:21]} 12. Qa3 {[%emt 0:00:16]} Nc2 {[%emt 0:03:50]} 13. Qxc5 {[%emt 0:00:12]} b6 {[%emt 0:04:07]} 14. Qg5 {[%emt 0:04:01]} h6 {[%emt 0:01:39]} 15. Qh4 {[%emt 0:15:59]} Nxe3 {[%emt 0:32:11]} 16. fxe3 {[%emt 0:00:07]} Ng4 {[%emt 0:10:16]} 17. Nd5 {[%emt 0:43:10]} g5 {[%emt 0:13:19]} 18. Nxg5 {[%emt 0:02:43]} e6 {[%emt 0:03:01]} 19. Nc3 {[%emt 0:06:01]} Nxe3 {[%emt 0:09:47]} 20. Bxa8 {[%emt 0:00:17]} Nxf1 {[%emt 0:02:56]} 21. Kxf1 {[%emt 0:05:47]} hxg5 {[%emt 0:01:17]} 22. Qe4 {[%emt 0:00:16]} f5 {[%emt 0:00:23]} 23. Qb7 {[%emt 0:03:03]} Rf7 {[%emt 0:00:27]} 24. Qxa7 {[%emt 0:00:59]} f4 {[%emt 0:00:56]} 25. g4 {[%emt 0:01:07]} Qc8 {[%emt 0:00:07]} 26. Bf3 {[%emt 0:01:58]} Bf8 {[%emt 0:01:47]} 27. Qxb6 {[%emt 0:01:27]} Bc5 {[%emt 0:00:26]} 28. Qa5 {[%emt 0:00:16]} Qf8 {[%emt 0:00:15]} 29. Ne4 {[%emt 0:00:38]} Bb4 {[%emt 0:00:41]} 30. Qxg5+ {[%emt 0:00:21]} Kh8 {[%emt 0:00:05]} 31. Qe5+ {[%emt 0:00:36]} Kg8 {[%emt 0:00:12]} 32. Rxd7 {[%emt 0:00:29]} 1-0

[Event "Bundesturnier Hauptturnier 1 2024"]
[Site "Olten"]
[Date "2024.05.12"]
[Round "7.7"]
[White "Regez, Markus"]
[Black "Toktomushev, Teimur"]
[Result "0-1"]
[ECO "D00"]
[WhiteElo "2045"]
[BlackElo "2295"]
[Annotator "ChessBase"]
[PlyCount "58"]
[EventDate "2024.05.09"]
[EventType "tourn"]
[EventCountry "SUI"]
[SourceTitle "playchess.com"]
[Source "ChessBase"]
[SourceQuality "1"]
[TimeControl "5400+30"]

1. d4 {[%emt 0:00:03]} d5 {[%emt 0:04:04]} 2. Nc3 {[%emt 0:00:12]} Nf6 {[%emt 0:00:07]} 3. Bf4 {[%emt 0:00:20]} a6 {[%emt 0:05:33]} 4. e3 {[%emt 0:00:26]} c5 {[%emt 0:00:54]} 5. dxc5 {[%emt 0:00:30]} Qa5 {[%emt 0:06:01]} 6. Bd3 {[%emt 0:02:51]} Nc6 {[%emt 0:12:44]} 7. a3 {[%emt 0:07:41]} Qxc5 {[%emt 0:01:15]} 8. Nf3 {[%emt 0:00:53]} Bg4 {[%emt 0:03:32]} 9. Be2 {[%emt 0:04:24]} Rd8 {[%emt 0:11:01]} 10. O-O {[%emt 0:02:16]} g6 {[%emt 0:11:14]} 11. h3 {[%emt 0:02:24]} Bxf3 {[%emt 0:00:17]} 12. Bxf3 {[%emt 0:00:11]} Bg7 {[%emt 0:00:46]} 13. Qb1 {[%emt 0:05:43]} e5 {[%emt 0:06:24]} 14. Bg5 {[%emt 0:00:30]} e4 {[%emt 0:00:23]} 15. Bd1 {[%emt 0:06:44]} O-O {[%emt 0:03:53]} 16. Qa2 {[%emt 0:02:05]} h6 {[%emt 0:07:58]} 17. Bh4 {[%emt 0:02:14]} g5 {[%emt 0:00:56]} 18. Bg3 {[%emt 0:00:11]} d4 {[%emt 0:00:53]} 19. exd4 {[%emt 0:04:16]} Nxd4 {[%emt 0:00:13]} 20. Re1 {[%emt 0:03:42]} Nf5 {[%emt 0:02:09]} 21. Bh2 {[%emt 0:00:58]} Rd2 {[%emt 0:00:56]} 22. Be2 {[%emt 0:18:29]} e3 {[%emt 0:07:20]} 23. f3 {[%emt 0:00:42]} Rfd8 {[%emt 0:03:51]} 24. Rac1 {[%emt 0:00:42]} b5 {[%emt 0:05:37]} 25. Bd3 {[%emt 0:02:12]} Nh4 {[%emt 0:02:04]} 26. Re2 {[%emt 0:03:06]} a5 {[%emt 0:01:48]} 27. Rce1 {[%emt 0:03:52]} b4 {[%emt 0:00:22]} 28. axb4 {[%emt 0:00:08]} axb4 {[%emt 0:00:02]} 29. Ne4 {[%emt 0:05:08]} Nxe4 {[%emt 0:00:12]} 0-1

[Event "Bundesturnier Hauptturnier 1 2024"]
[Site "Olten"]
[Date "2024.05.12"]
[Round "7.8"]
[White "Retti, Ivan"]
[Black "Gantner, Matthias"]
[Result "0-1"]
[ECO "C58"]
[WhiteElo "2076"]
[BlackElo "2237"]
[Annotator "ChessBase"]
[PlyCount "94"]
[EventDate "2024.05.09"]
[EventType "tourn"]
[EventCountry "SUI"]
[SourceTitle "playchess.com"]
[Source "ChessBase"]
[SourceQuality "1"]
[TimeControl "5400+30"]

1. e4 {[%emt 0:00:05]} e5 {[%emt 0:00:06]} 2. Nf3 {[%emt 0:00:04]} Nc6 {[%emt 0:00:05]} 3. Bc4 {[%emt 0:00:06]} Nf6 {[%emt 0:00:06]} 4. Ng5 {[%emt 0:00:05]} d5 {[%emt 0:00:13]} 5. exd5 {[%emt 0:00:05]} Na5 {[%emt 0:00:14]} 6. Bb5+ {[%emt 0:00:05]} c6 {[%emt 0:01:34]} 7. dxc6 {[%emt 0:00:04]} bxc6 {[%emt 0:00:06]} 8. Bd3 {[%emt 0:00:06]} Nd5 {[%emt 0:00:11]} 9. h4 {[%emt 0:00:16]} h6 {[%emt 0:01:08]} 10. Qh5 {[%emt 0:00:06]} Qf6 {[%emt 0:00:10]} 11. Ne4 {[%emt 0:05:04]} Qe6 {[%emt 0:00:33]} 12. Nbc3 {[%emt 0:24:55]} g6 {[%emt 0:09:37]} 13. Qe2 {[%emt 0:05:14]} Nf4 {[%emt 0:09:48]} 14. Qf1 {[%emt 0:02:47]} f5 {[%emt 0:02:19]} 15. Ng3 {[%emt 0:00:08]} Bg7 {[%emt 0:15:47]} 16. b3 {[%emt 0:01:08]} O-O {[%emt 0:02:41]} 17. Bb2 {[%emt 0:00:37]} c5 {[%emt 0:10:54]} 18. O-O-O {[%emt 0:01:07]} Bb7 {[%emt 0:02:26]} 19. f3 {[%emt 0:01:06]} Rac8 {[%emt 0:00:53]} 20. Bb5 {[%emt 0:01:40]} a6 {[%emt 0:02:38]} 21. Ba4 {[%emt 0:00:28]} Qd6 {[%emt 0:07:27]} 22. Kb1 {[%emt 0:03:11]} h5 {[%emt 0:05:43]} 23. Nge2 {[%emt 0:02:23]} Ne6 {[%emt 0:02:01]} 24. d3 {[%emt 0:03:07]} Kh7 {[%emt 0:06:53]} 25. Qf2 {[%emt 0:00:49]} Nc6 {[%emt 0:02:10]} 26. Bxc6 {[%emt 0:05:38]} Bxc6 {[%emt 0:01:32]} 27. Rde1 {[%emt 0:00:21]} a5 {[%emt 0:01:21]} 28. Nd1 {[%emt 0:00:39]} a4 {[%emt 0:04:25]} 29. Ne3 {[%emt 0:00:48]} axb3 {[%emt 0:01:17]} 30. axb3 {[%emt 0:00:06]} Bd5 {[%emt 0:00:09]} 31. Nc3 {[%emt 0:02:43]} Bc6 {[%emt 0:01:28]} 32. Nc4 {[%emt 0:00:47]} Qc7 {[%emt 0:00:22]} 33. Qg3 {[%emt 0:06:54]} f4 {[%emt 0:02:09]} 34. Qf2 {[%emt 0:00:30]} Nd4 {[%emt 0:00:59]} 35. Ne4 {[%emt 0:02:15]} Bd5 {[%emt 0:00:07]} 36. Rhg1 {[%emt 0:02:23]} Bxc4 {[%emt 0:00:17]} 37. dxc4 {[%emt 0:00:08]} Qc6 {[%emt 0:01:16]} 38. Ng5+ {[%emt 0:08:45]} Kh8 {[%emt 0:00:22]} 39. g4 {[%emt 0:00:51]} fxg3 {[%emt 0:00:44]} 40. Qxg3 {[%emt 0:00:04]} Ra8 {[%emt 0:00:39]} 41. Bxd4 {[%emt 0:09:17]} exd4 {[%emt 0:00:49]} 42. Kc1 {[%emt 0:00:03]} d3 {[%emt 0:00:54]} 43. Ne4 {[%emt 0:00:38]} dxc2 {[%emt 0:04:05]} 44. Nd6 {[%emt 0:11:22]} Qa6 {[%emt 0:01:41]} 45. Qxg6 {[%emt 0:00:30]} Qa1+ {[%emt 0:00:25]} 46. Kxc2 {[%emt 0:00:28]} Ra2+ {[%emt 0:00:39]} 47. Kd3 {[%emt 0:00:07]} Qd4# {[%emt 0:00:06]} 0-1

[Event "Bundesturnier Hauptturnier 1 2024"]
[Site "Olten"]
[Date "2024.05.12"]
[Round "7.9"]
[White "Gemelli, Romain"]
[Black "Prunescu, Claudiu"]
[Result "0-1"]
[ECO "D16"]
[WhiteElo "2047"]
[BlackElo "2249"]
[Annotator "ChessBase"]
[PlyCount "50"]
[EventDate "2024.05.09"]
[EventType "tourn"]
[EventCountry "SUI"]
[SourceTitle "playchess.com"]
[Source "ChessBase"]
[SourceQuality "1"]
[TimeControl "5400+30"]

1. d4 {[%emt 0:00:06]} d5 {[%emt 0:00:21]} 2. c4 {[%emt 0:00:09]} c6 {[%emt 0:00:45]} 3. Nc3 {[%emt 0:00:08]} Nf6 {[%emt 0:00:52]} 4. Nf3 {[%emt 0:00:13]} dxc4 {[%emt 0:00:49]} 5. a4 {[%emt 0:00:10]} e6 {[%emt 0:01:39]} 6. e3 {[%emt 0:00:27]} c5 {[%emt 0:00:35]} 7. Bxc4 {[%emt 0:00:07]} Nc6 {[%emt 0:00:34]} 8. O-O {[%emt 0:01:25]} cxd4 {[%emt 0:00:27]} 9. exd4 {[%emt 0:00:08]} Be7 {[%emt 0:00:45]} 10. Qe2 {[%emt 0:13:03]} O-O {[%emt 0:01:52]} 11. Rd1 {[%emt 0:00:23]} Nb4 {[%emt 0:01:49]} 12. Ne5 {[%emt 0:02:44]} Nbd5 {[%emt 0:04:41]} 13. Bd2 {[%emt 0:17:09]} Bd7 {[%emt 0:02:10]} 14. a5 {[%emt 0:03:53]} a6 {[%emt 0:07:23]} 15. Ne4 {[%emt 0:09:00]} Rc8 {[%emt 0:05:45]} 16. Nc5 {[%emt 0:06:20]} Bxc5 {[%emt 0:04:47]} 17. dxc5 {[%emt 0:00:05]} Rxc5 {[%emt 0:01:08]} 18. Nxd7 {[%emt 0:06:23]} Nxd7 {[%emt 0:01:01]} 19. b4 {[%emt 0:01:05]} Rc8 {[%emt 0:02:47]} 20. Bxd5 {[%emt 0:04:30]} exd5 {[%emt 0:00:08]} 21. Qf3 {[%emt 0:00:26]} Ne5 {[%emt 0:04:59]} 22. Qg3 {[%emt 0:01:34]} Nc6 {[%emt 0:04:01]} 23. Bf4 {[%emt 0:10:51]} Qf6 {[%emt 0:06:58]} 24. Rab1 {[%emt 0:02:10]} Rfe8 {[%emt 0:08:35]} 25. b5 {[%emt 0:04:56]} Nd4 {[%emt 0:01:45]} 0-1

[Event "Bundesturnier Hauptturnier 1 2024"]
[Site "Olten"]
[Date "2024.05.12"]
[Round "7.10"]
[White "Rotunno, Flavio"]
[Black "Schlegel, Igor"]
[Result "1/2-1/2"]
[ECO "A57"]
[WhiteElo "2105"]
[BlackElo "2215"]
[Annotator "ChessBase"]
[PlyCount "73"]
[EventDate "2024.05.09"]
[EventType "tourn"]
[EventCountry "SUI"]
[SourceTitle "playchess.com"]
[Source "ChessBase"]
[SourceQuality "1"]
[TimeControl "5400+30"]

1. d4 {[%emt 0:08:02]} Nf6 {[%emt 0:00:11]} 2. c4 {[%emt 0:00:04]} c5 {[%emt 0:00:01]} 3. d5 {[%emt 0:00:07]} b5 {[%emt 0:00:03]} 4. Nd2 {[%emt 0:00:04]} d6 {[%emt 0:02:20]} 5. e4 {[%emt 0:00:28]} b4 {[%emt 0:08:30]} 6. Ngf3 {[%emt 0:01:32]} g6 {[%emt 0:03:24]} 7. e5 {[%emt 0:10:15]} dxe5 {[%emt 0:05:20]} 8. Nxe5 {[%emt 0:00:06]} Bg7 {[%emt 0:00:11]} 9. Nd3 {[%emt 0:00:08]} Nbd7 {[%emt 0:01:23]} 10. Be2 {[%emt 0:02:48]} O-O {[%emt 0:00:19]} 11. O-O {[%emt 0:04:38]} a5 {[%emt 0:00:12]} 12. Nb3 {[%emt 0:02:18]} Ne4 {[%emt 0:05:57]} 13. Be3 {[%emt 0:12:01]} Qc7 {[%emt 0:09:00]} 14. Bf3 {[%emt 0:19:35]} Nd6 {[%emt 0:00:25]} 15. Nbxc5 {[%emt 0:02:38]} Nxc4 {[%emt 0:16:55]} 16. d6 {[%emt 0:12:11]} exd6 {[%emt 0:00:33]} 17. Nxd7 {[%emt 0:02:19]} Nxe3 {[%emt 0:00:41]} 18. fxe3 {[%emt 0:00:56]} Bxd7 {[%emt 0:00:06]} 19. Bxa8 {[%emt 0:01:15]} Rxa8 {[%emt 0:00:04]} 20. Rxf7 {[%emt 0:01:19]} Kxf7 {[%emt 0:06:24]} 21. Qf3+ {[%emt 0:01:48]} Bf5 {[%emt 0:00:07]} 22. Qxa8 {[%emt 0:00:08]} Qe7 {[%emt 0:00:25]} 23. Qf3 {[%emt 0:04:41]} Bf6 {[%emt 0:04:17]} 24. Rd1 {[%emt 0:06:27]} Kg7 {[%emt 0:01:13]} 25. b3 {[%emt 0:00:28]} h5 {[%emt 0:00:38]} 26. h3 {[%emt 0:01:02]} Be4 {[%emt 0:00:40]} 27. Qe2 {[%emt 0:00:52]} Kh6 {[%emt 0:01:15]} 28. Nf4 {[%emt 0:01:06]} Be5 {[%emt 0:00:27]} 29. Qc4 {[%emt 0:00:48]} Bb7 {[%emt 0:03:32]} 30. Rf1 {[%emt 0:04:52]} Qg5 {[%emt 0:01:44]} 31. Qe2 {[%emt 0:00:17]} Be4 {[%emt 0:01:57]} 32. Qf2 {[%emt 0:00:20]} Qe7 {[%emt 0:06:36]} 33. Ne2 {[%emt 0:00:42]} Bd3 {[%emt 0:01:59]} 34. Rd1 {[%emt 0:00:19]} Be4 {[%emt 0:00:19]} 35. Rf1 {[%emt 0:00:26]} Bd3 {[%emt 0:00:03]} 36. Rd1 {[%emt 0:00:34]} Be4 {[%emt 0:00:32]} 37. Rf1 {[%emt 0:00:47]} 1/2-1/2